{"text_format":"1","workbook":"xlsx","n_sheets":4,"sheets":["危化品自查备案","规章制度自查","下拉菜单","结果汇总"],"not_rendered":{"charts":0,"images":0,"macros":1,"external_links":0,"defined_names":0,"comments":0,"pivot_tables":0},"unopened":[],"bounds":{"document_bytes":16777216,"sheet_cells":100000,"rows_first":2000,"rows_last":500,"rows_between":2000,"halvings":0,"cell_chars":16384,"cell_head_chars":4096},"cells_cut":0,"cells_raw":0,"read":"whole","date_system":"1900"}

{"sheet":"危化品自查备案","index":0,"n_rows":10,"n_cols":12,"rows_kept":10,"cut":false,"hidden":false,"merged":[[0,0,0,8],[1,0,1,8],[2,1,2,8],[3,1,3,8],[4,1,4,8]]}
["1.此表各实验室按课题组填写，各课题组按房间自查填写。                                                                                                                                                                                      2.每个房间使用的危险品及数量如实上报，切勿漏报。                                                "]
["危险化学品及设施设备自查备案"]
["实验室"]
["课题组名称"]
["课题组长"]
["使用场所（楼号加房间号）      ","使用化学试剂名称及数量","应急处理及现场急救","使用气体名称及数量","应急处理及现场急救","使用其它危险化学品及数量","应急处理及现场急救","使用设备设施及数量（包括压力容器）","应急处理及现场急救"]
[]
[]
[]
[null,null,null,null,null,null,null,null,null,null,null," "]

{"sheet":"规章制度自查","index":1,"n_rows":6,"n_cols":4,"rows_kept":6,"cut":false,"hidden":false,"merged":[[1,0,1,3],[2,1,2,3],[3,1,3,3],[4,1,4,3],[0,0,0,3]]}
["1.此表各实验室按课题组填写，各课题组按房间自查填写。                                                                                                                                                                                      2.每个房间规则制度的落实请如实上报，没有的尽快补齐。  "]
["规章制度自查"]
["实验室"]
["课题组名称"]
["课题组长"]
["房间号","危化品管理制度是否“上墙”","操作流程是否“上墙”","应急预案是否“上墙”"]

{"sheet":"下拉菜单","index":2,"n_rows":24,"n_cols":3,"rows_kept":24,"cut":false,"hidden":true,"merged":[]}
["实验室","类型","涉及"]
[null,"国家实验室","危化品"]
[null,"国家工程实验室","特种设备"]
[null,"国家重点实验室","重大科学基础设施"]
[null,"中科院重点实验室"]
[null,"教育部重点实验室"]
[null,"省部共建重点实验室"]
[null,"省重点实验室"]
[null,"其他"]
[]
["重大科学基础设施","类别","状态"]
[null,"专用研究装置","运行"]
[null,"公共实验平台","在建"]
[null,"公益基础设施","立项"]
[]
[null,"培训者","课题组负责人"]
[null,null,"安全员"]
[null,null,"指导老师"]
[null,null,"外聘老师"]
[null,null,"其他"]
[null,"培训方式","授课"]
[null,null,"考试"]
[null,null,"实操"]
[null,null,"其他"]

{"sheet":"结果汇总","index":3,"n_rows":299,"n_cols":4,"rows_kept":299,"cut":false,"hidden":true,"merged":[[0,1,0,2]]}
[null,"数据统计汇总表"]
["一、基本情况","标记","数据项"]
[null,null,"单位名称（全称）",{"$f":"#REF!","v":{"$error":"#REF!"}}]
[1,null,"应编人数：",{"$f":"#REF!","v":{"$error":"#REF!"}}]
[null,null,"在编人数：",{"$f":"#REF!","v":{"$error":"#REF!"}}]
[null,null,"临时聘用人数：",{"$f":"#REF!","v":{"$error":"#REF!"}}]
[null,null,"学生人数：",{"$f":"#REF!","v":{"$error":"#REF!"}}]
[null,null,"联合培养学生人数：",{"$f":"#REF!","v":{"$error":"#REF!"}}]
[null,null,"离退休人数：",{"$f":"#REF!","v":{"$error":"#REF!"}}]
[2,null,"多园区：",2]
[null,"地址1","地址1",{"$f":"#REF!","v":{"$error":"#REF!"}}]
[null,null,"占地面积",{"$f":"#REF!","v":{"$error":"#REF!"}}]
[null,null,"兴建时间",{"$f":"#REF!","v":{"$error":"#REF!"}}]
[null,null,"入驻人数",{"$f":"#REF!","v":{"$error":"#REF!"}}]
[null,"包含","办公楼",true]
[null,null,"科研教学楼",true]
[null,null,"宿舍",true]
[null,null,"危化品库",true]
[null,null,"食堂",true]
[null,null,"其他",{"$f":"#REF!","v":{"$error":"#REF!"}}]
[null,"园区管理","封闭",false]
[null,null,"半封闭",true]
[null,null,"开放",false]
[null,"距离最近的","医院",{"$f":"#REF!","v":{"$error":"#REF!"}}]
[null,null,"公安机关",{"$f":"#REF!","v":{"$error":"#REF!"}}]
[null,null,"消防队",{"$f":"#REF!","v":{"$error":"#REF!"}}]
[null,"地址2","地址2",{"$f":"#REF!","v":{"$error":"#REF!"}}]
[null,null,"占地面积",{"$f":"#REF!","v":{"$error":"#REF!"}}]
[null,null,"兴建时间",{"$f":"#REF!","v":{"$error":"#REF!"}}]
[null,null,"入驻人数",{"$f":"#REF!","v":{"$error":"#REF!"}}]
[null,"包含","办公楼",false]
[null,null,"科研教学楼",false]
[null,null,"宿舍",false]
[null,null,"危化品库",false]
[null,null,"食堂"]
[null,null,"其他",{"$f":"#REF!","v":{"$error":"#REF!"}}]
[null,"园区管理","封闭",false]
[null,null,"半封闭",false]
[null,null,"开放",false]
[null,"距离最近的","医院",{"$f":"#REF!","v":{"$error":"#REF!"}}]
[null,null,"公安机关",{"$f":"#REF!","v":{"$error":"#REF!"}}]
[null,null,"消防队",{"$f":"#REF!","v":{"$error":"#REF!"}}]
[null,"地址3","地址3",{"$f":"#REF!","v":{"$error":"#REF!"}}]
[null,null,"占地面积",{"$f":"#REF!","v":{"$error":"#REF!"}}]
[null,null,"兴建时间",{"$f":"#REF!","v":{"$error":"#REF!"}}]
[null,null,"入驻人数",{"$f":"#REF!","v":{"$error":"#REF!"}}]
[null,"包含","办公楼",false]
[null,null,"科研教学楼",false]
[null,null,"宿舍",true]
[null,null,"危化品库",false]
[null,null,"食堂"]
[null,null,"其他",{"$f":"#REF!","v":{"$error":"#REF!"}}]
[null,"园区管理","封闭",false]
[null,null,"半封闭",false]
[null,null,"开放",false]
[null,"距离最近的","医院",{"$f":"#REF!","v":{"$error":"#REF!"}}]
[null,null,"公安机关",{"$f":"#REF!","v":{"$error":"#REF!"}}]
[null,null,"消防队",{"$f":"#REF!","v":{"$error":"#REF!"}}]
[null,"地址4","地址4",{"$f":"#REF!","v":{"$error":"#REF!"}}]
[null,null,"占地面积",{"$f":"#REF!","v":{"$error":"#REF!"}}]
[null,null,"兴建时间",{"$f":"#REF!","v":{"$error":"#REF!"}}]
[null,null,"入驻人数",{"$f":"#REF!","v":{"$error":"#REF!"}}]
[null,"包含","办公楼",false]
[null,null,"科研教学楼",false]
[null,null,"宿舍",false]
[null,null,"危化品库",false]
[null,null,"食堂",false]
[null,null,"其他",{"$f":"#REF!","v":{"$error":"#REF!"}}]
[null,"园区管理","封闭",false]
[null,null,"半封闭",false]
[null,null,"开放",false]
[null,"距离最近的","医院",{"$f":"#REF!","v":{"$error":"#REF!"}}]
[null,null,"公安机关",{"$f":"#REF!","v":{"$error":"#REF!"}}]
[null,null,"消防队",{"$f":"#REF!","v":{"$error":"#REF!"}}]
[3,"地上建筑","主要建筑占地面积",{"$f":"#REF!","v":{"$error":"#REF!"}}]
[null,null,"建筑面积",{"$f":"#REF!","v":{"$error":"#REF!"}}]
[null,null,"楼房建筑面积",{"$f":"#REF!","v":{"$error":"#REF!"}}]
[null,null,"平房建筑面积",{"$f":"#REF!","v":{"$error":"#REF!"}}]
[null,null,"地下空间建筑面积",{"$f":"#REF!","v":{"$error":"#REF!"}}]
[null,null,"用途",{"$f":"#REF!","v":{"$error":"#REF!"}}]
[null,null,"50年代前",{"$f":"#REF!","v":{"$error":"#REF!"}}]
[null,null,"用途",{"$f":"#REF!","v":{"$error":"#REF!"}}]
[null,null,"50-80",{"$f":"#REF!","v":{"$error":"#REF!"}}]
[null,null,"用途",{"$f":"#REF!","v":{"$error":"#REF!"}}]
[null,null,"80-00",{"$f":"#REF!","v":{"$error":"#REF!"}}]
[null,null,"用途",{"$f":"#REF!","v":{"$error":"#REF!"}}]
[null,null,"00后",{"$f":"#REF!","v":{"$error":"#REF!"}}]
[null,null,"用途",{"$f":"#REF!","v":{"$error":"#REF!"}}]
[4,"安全事件"," 火灾及其他灾害事件（含野外台站）：",{"$f":"#REF!","v":{"$error":"#REF!"}}]
[null,null," 人身伤亡及群体性事件（含食品安全）：",{"$f":"#REF!","v":{"$error":"#REF!"}}]
[null,null," 财物失窃事件（园区和宿舍）：",{"$f":"#REF!","v":{"$error":"#REF!"}}]
[null,null," 相关刑事案件：",{"$f":"#REF!","v":{"$error":"#REF!"}}]
[null,null,"  其他案件（事件）：",{"$f":"#REF!","v":{"$error":"#REF!"}}]
["二、安全管理组织","安全管理机构","安全分管领导：",{"$f":"#REF!","v":{"$error":"#REF!"}}]
[1,null,"职务",{"$f":"#REF!","v":{"$error":"#REF!"}}]
[null,null,"手机",{"$f":"#REF!","v":{"$error":"#REF!"}}]
[null,null,"安全责任部门：",{"$f":"#REF!","v":{"$error":"#REF!"}}]
[null,null,"责任部门负责人",{"$f":"#REF!","v":{"$error":"#REF!"}}]
[null,null,"职务",{"$f":"#REF!","v":{"$error":"#REF!"}}]
[null,null,"手机",{"$f":"#REF!","v":{"$error":"#REF!"}}]
[null,null,"安全管理干部",{"$f":"#REF!","v":{"$error":"#REF!"}}]
[null,null,"职务",{"$f":"#REF!","v":{"$error":"#REF!"}}]
[null,null,"手机",{"$f":"#REF!","v":{"$error":"#REF!"}}]
[null,null,"安全管理干部",{"$f":"#REF!","v":{"$error":"#REF!"}}]
[null,null,"职务",{"$f":"#REF!","v":{"$error":"#REF!"}}]
[null,null,"手机",{"$f":"#REF!","v":{"$error":"#REF!"}}]
[null,null,"安全管理干部",{"$f":"#REF!","v":{"$error":"#REF!"}}]
[null,null,"职务",{"$f":"#REF!","v":{"$error":"#REF!"}}]
[null,null,"手机",{"$f":"#REF!","v":{"$error":"#REF!"}}]
[null,null,"安全管理干部",{"$f":"#REF!","v":{"$error":"#REF!"}}]
[null,null,"职务",{"$f":"#REF!","v":{"$error":"#REF!"}}]
[null,null,"手机",{"$f":"#REF!","v":{"$error":"#REF!"}}]
[null,null,"安全管理干部",{"$f":"#REF!","v":{"$error":"#REF!"}}]
[null,null,"职务",{"$f":"#REF!","v":{"$error":"#REF!"}}]
[null,null,"手机",{"$f":"#REF!","v":{"$error":"#REF!"}}]
[2,1,"组织机构",true]
["安全管理制度",null,"安全责任",true]
[null,null,"人员管理",true]
[null,null,"安全生产",true]
[null,null,"操作规程",true]
[null,null,"安全教育培训  ",true]
[null,null,"危化品管理",true]
[null,null,"实验室管理",true]
[null,null,"特种设备管理",true]
[null,null,"应急处置",true]
[null,null,"检查与奖惩",true]
[null,null,"其他   ",false]
[null,2,"是否规定修订的时机和频次",1]
[null,null,"是否按规定修订",1]
[null,null,"评审和修订记录完备",1]
[null,null,"有管理人员、技术人员、操作人员共同参与评审和修订",1]
[3,"安全工作会议","总次数",{"$f":"COUNTA(#REF!)","v":1}]
[null,null,"参加人数",{"$f":"SUM(#REF!)","v":{"$error":"#REF!"}}]
[4,"安全教育培训一级","总次数",{"$f":"COUNTA(#REF!)","v":1}]
[null,null,"参加人数",{"$f":"SUM(#REF!)","v":{"$error":"#REF!"}}]
[null,"安全教育培训二级","主题"]
[null,null,"次数",{"$f":"SUM(#REF!)","v":{"$error":"#REF!"}}]
[null,null,"人数",{"$f":"SUM(#REF!)","v":{"$error":"#REF!"}}]
[5,null,"专业的应急队伍：",2]
[null,null,"针对主要风险事件类型制定应急预案：",2]
[null,null,"应急预案演练频次（年度）：",false]
[null,null,null,true]
[null,null,null,false]
[null,null,"事故报告制度：",2]
[null,null,"事故内部调查：",2]
[null,null,"事故调查记录完备："]
["三","安全队伍","是否建立兼职安全员队伍：",2]
[null,null,"是否制定兼职安全员相关制度：",2]
[null,null,"安保队伍的组建方式：",true]
[null,null,null,false]
[null,null,null,false]
[null,null,"安全员人数",{"$f":"#REF!","v":{"$error":"#REF!"}}]
[null,null,"安保队伍人数",{"$f":"#REF!","v":{"$error":"#REF!"}}]
["四","实验室"]
[null,"危化品数量"]
[2.2000000000000002,"危化品管理","是否有危化品库：",1]
[null,"危化品暂存地点：","危化品库",true]
[null,null,"实验室"]
[null,null,"临时房间"]
[null,null,"不确定"]
[null,null,"其他"]
[null,null,"危化品库面积：",{"$f":"#REF!","v":{"$error":"#REF!"}}]
[null,null,"与其他设施最小间距：",{"$f":"#REF!","v":{"$error":"#REF!"}}]
[null,null,"是否存在危化品重大危险源：",2]
[2.2999999999999998,"有机","数量",{"$f":"#REF!","v":{"$error":"#REF!"}}]
[null,null,"单位",{"$f":"#REF!","v":{"$error":"#REF!"}}]
[null,null,"回收间隔",{"$f":"#REF!","v":{"$error":"#REF!"}}]
[null,null,"暂存地",{"$f":"#REF!","v":{"$error":"#REF!"}}]
[null,null,"责任人",{"$f":"#REF!","v":{"$error":"#REF!"}}]
[null,"无机","数量",{"$f":"#REF!","v":{"$error":"#REF!"}}]
[null,null,"单位",{"$f":"#REF!","v":{"$error":"#REF!"}}]
[null,null,"回收间隔",{"$f":"#REF!","v":{"$error":"#REF!"}}]
[null,null,"暂存地",{"$f":"#REF!","v":{"$error":"#REF!"}}]
[null,null,"责任人",{"$f":"#REF!","v":{"$error":"#REF!"}}]
[null,"酸碱","数量",{"$f":"#REF!","v":{"$error":"#REF!"}}]
[null,null,"单位",{"$f":"#REF!","v":{"$error":"#REF!"}}]
[null,null,"回收间隔",{"$f":"#REF!","v":{"$error":"#REF!"}}]
[null,null,"暂存地",{"$f":"#REF!","v":{"$error":"#REF!"}}]
[null,null,"责任人",{"$f":"#REF!","v":{"$error":"#REF!"}}]
[null,"重金属","数量",{"$f":"#REF!","v":{"$error":"#REF!"}}]
[null,null,"单位",{"$f":"#REF!","v":{"$error":"#REF!"}}]
[null,null,"回收间隔",{"$f":"#REF!","v":{"$error":"#REF!"}}]
[null,null,"暂存地",{"$f":"#REF!","v":{"$error":"#REF!"}}]
[null,null,"责任人",{"$f":"#REF!","v":{"$error":"#REF!"}}]
[null,"生物","数量",{"$f":"#REF!","v":{"$error":"#REF!"}}]
[null,null,"单位",{"$f":"#REF!","v":{"$error":"#REF!"}}]
[null,null,"回收间隔",{"$f":"#REF!","v":{"$error":"#REF!"}}]
[null,null,"暂存地",{"$f":"#REF!","v":{"$error":"#REF!"}}]
[null,null,"责任人",{"$f":"#REF!","v":{"$error":"#REF!"}}]
[null,"其他","数量",{"$f":"#REF!","v":{"$error":"#REF!"}}]
[null,null,"单位",{"$f":"#REF!","v":{"$error":"#REF!"}}]
[null,null,"回收间隔",{"$f":"#REF!","v":{"$error":"#REF!"}}]
[null,null,"暂存地",{"$f":"#REF!","v":{"$error":"#REF!"}}]
[null,null,"责任人",{"$f":"#REF!","v":{"$error":"#REF!"}}]
[3,"特种设备管理机械加工设备","数量"]
[null,null,"单位"]
[null,null,"用途"]
[null,null,"管理责任部门"]
[null,"起重设备","数量"]
[null,null,"单位"]
[null,null,"用途"]
[null,null,"管理责任部门"]
[null,"压力容器","数量"]
[null,null,"单位"]
[null,null,"用途"]
[null,null,"管理责任部门"]
[null,"压力管道","数量"]
[null,null,"单位"]
[null,null,"用途"]
[null,null,"管理责任部门"]
[null,"锅炉","数量"]
[null,null,"单位"]
[null,null,"用途"]
[null,null,"管理责任部门"]
[null,"电梯","数量"]
[null,null,"单位"]
[null,null,"用途"]
[null,null,"管理责任部门"]
[null,"其他","数量"]
[null,null,"单位"]
[null,null,"用途"]
[null,null,"管理责任部门"]
[null,"编号1","名称"]
[null,null,"单位"]
[null,null,"个人"]
[null,null,"国外"]
[null,null,"类别"]
[null,null,"状态"]
[null,null,"地理位置"]
[null,null,"安全责任部门"]
[null,null,"负责人姓名"]
[null,null,"手机号"]
[null,"编号2","名称"]
[null,null,"单位"]
[null,null,"个人"]
[null,null,"国外"]
[null,null,"类别"]
[null,null,"状态"]
[null,null,"地理位置"]
[null,null,"安全责任部门"]
[null,null,"负责人姓名"]
[null,null,"手机号"]
[null,"编号3","名称"]
[null,null,"单位"]
[null,null,"个人"]
[null,null,"国外"]
[null,null,"类别"]
[null,null,"状态"]
[null,null,"地理位置"]
[null,null,"安全责任部门"]
[null,null,"负责人姓名"]
[null,null,"手机号"]
[null,"野外科考","年度组织野外科考次数 ：",{"$f":"#REF!","v":{"$error":"#REF!"}}]
[null,null,"参加人数",{"$f":"#REF!","v":{"$error":"#REF!"}}]
[null,null,"科考审批制度、程序是否完备：",1]
[null,null,"是否组织针对科考人员的安全培训：",1]
[null,null,"对科考队伍的应急、医疗和通信条件进行审查：",1]
["五","消防队伍","描述",{"$f":"#REF!","v":{"$error":"#REF!"}}]
[null,null,"应对措施",{"$f":"#REF!","v":{"$error":"#REF!"}}]
[null,"消防设施","描述",{"$f":"#REF!","v":{"$error":"#REF!"}}]
[null,null,"应对措施",{"$f":"#REF!","v":{"$error":"#REF!"}}]
[null,"科研生产火灾重点防范部位","描述",{"$f":"#REF!","v":{"$error":"#REF!"}}]
[null,null,"应对措施",{"$f":"#REF!","v":{"$error":"#REF!"}}]
[null,"其他情况","描述",{"$f":"#REF!","v":{"$error":"#REF!"}}]
[null,null,"应对措施",{"$f":"#REF!","v":{"$error":"#REF!"}}]
["六","食堂","有无",{"$f":"#REF!","v":{"$error":"#REF!"}}]
[null,"宿舍",null,{"$f":"#REF!","v":{"$error":"#REF!"}}]
[null,"库房",null,{"$f":"#REF!","v":{"$error":"#REF!"}}]
[null,"礼堂及大型会议室",null,{"$f":"#REF!","v":{"$error":"#REF!"}}]
[null,"人防工程及地下空间",null,{"$f":"#REF!","v":{"$error":"#REF!"}}]
[null,"其它",null,{"$f":"#REF!","v":{"$error":"#REF!"}}]
["七","暴雨",null,{"$f":"#REF!","v":{"$error":"#REF!"}}]
[null,"台风",null,{"$f":"#REF!","v":{"$error":"#REF!"}}]
[null,"地震",null,{"$f":"#REF!","v":{"$error":"#REF!"}}]
[null,"泥石流",null,{"$f":"#REF!","v":{"$error":"#REF!"}}]
[null,"雷电",null,{"$f":"#REF!","v":{"$error":"#REF!"}}]
[null,"其它",null,{"$f":"#REF!","v":{"$error":"#REF!"}}]
["八","资产、人事、基建等重大决策做出前进行评估事项包括：","合法性",true]
[null,null,"政策性",true]
[null,null,"法规性",true]
[null,null,"合理性",true]
[null,null,"可控性",true]
[null,null,"职代会讨论",1]
[null,"项目审批","政策规划与审批程序健全：",1]
[null,null,"相关补偿协议健全：",1]
[null,"审批相关评估事项包括：",1,true]
[null,null,2,true]
[null,null,3,true]
[null,null,4,true]
[null,null,5,true]
[null,null,6,true]
[null,null,7,true]
[null,null,8]
[null,"内部纠纷","住房纠纷：",2]
[null,null,"房屋拆迁纠纷：",2]
[null,null,"劳动保障纠纷：",2]
[null,null," 经济纠纷（工资待遇）：",2]
[null,null,"涉法、涉诉纠纷：",2]
[null,null,"群体事件（暴力、非正常上访、人员聚集等）：",2]